fUST/lending_fUST_20250917
["ID","MTS","AMOUNT","RATE_DAILY","PERIOD"]
[385880387,1758088237473,-1514.75,0.00022989,2]
[385880388,1758088237482,-1514.75362225,0.00022989,2]
[385880389,1758088237491,-18650.11975079,0.0002299,2]
[385880390,1758088237500,-769.63264468,0.0002299,2]
[385880391,1758088237509,-559.0,0.00023013,2]
[385880392,1758088237518,-480.0,0.00023013,3]
[385880393,1758088237527,-480.0,0.00023013,3]
[385880394,1758088237536,-480.0,0.00023013,3]
[385880395,1758088237545,-584.0,0.00023013,3]
[385880396,1758088237554,-480.0,0.00023013,3]
[385880397,1758088237563,-480.0,0.00023013,3]
[385880398,1758088237572,-1148.77,0.00023013,3]
[385880399,1758088237581,-480.0,0.00023013,3]
[385880400,1758088237590,-480.0,0.00023013,3]
[385880401,1758088237599,-480.0,0.00023013,3]
[385880402,1758088237608,-554.43,0.00023013,3]
[385880403,1758088237617,-482.75,0.00023013,3]
[385880404,1758088237626,-480.0,0.00023013,3]
[385880405,1758088237635,-497.31,0.00023013,3]
[385880406,1758088237644,-480.0,0.00023013,3]
[385880407,1758088237654,-1005.56,0.00023013,3]
[385880408,1758088237663,-480.0,0.00023013,3]
[385880409,1758088237673,-480.0,0.00023013,3]
[385880410,1758088237682,-764.21,0.00023013,3]
[385880411,1758088237691,-2797.1,0.00023013,3]
[385880412,1758088237700,-480.0,0.00023013,3]
[385880413,1758088237709,-480.0,0.00023013,3]
[385880414,1758088237718,-652.87,0.00023013,3]
[385880415,1758088237727,-928.61,0.00023013,3]
[385880416,1758088237736,-2098.66,0.00023013,3]
[385880417,1758088237745,-480.0,0.00023013,3]
[385880418,1758088237754,-480.0,0.00023013,3]
[385880419,1758088237764,-743.46,0.00023013,3]
[385880420,1758088237773,-520.15,0.00023013,3]
[385880421,1758088237783,-529.8,0.00023013,3]
[385880422,1758088237791,-1121.96,0.00023013,3]
[385880423,1758088237801,-890.8,0.00023013,3]
[385880424,1758088237810,-1989.71,0.00023013,3]
[385880425,1758088237819,-480.0,0.00023013,3]
[385880426,1758088237832,-480.0,0.00023013,3]
[385880427,1758088237841,-480.0,0.00023013,3]
[385880428,1758088237850,-1222.0,0.00023013,3]
[385880430,1758088237859,-512.09,0.00023013,3]
[385880432,1758088237869,-480.0,0.00023013,3]
[385880434,1758088237879,-480.0,0.00023013,3]
[385880436,1758088237888,-1170.88,0.00023013,3]
[385880437,1758088237897,-606.96,0.00023013,3]
[385880438,1758088237908,-6251.21,0.00023013,3]
[385880440,1758088238006,-480.0,0.00023013,3]
[385880441,1758088238016,-1283.59,0.00023013,3]
[385880442,1758088238026,-1670.65,0.00023013,3]
[385880443,1758088238035,-2091.14,0.00023013,3]
[385880444,1758088238044,-480.0,0.00023013,3]
[385880446,1758088238053,-480.0,0.00023013,3]
[385880447,1758088238062,-531.04,0.00023013,3]
[385880448,1758088238071,-3082.42,0.00023013,3]
[385880449,1758088238080,-502.35,0.00023013,3]
[385880450,1758088238090,-480.0,0.00023013,3]
[385880451,1758088238099,-480.0,0.00023013,3]
[385880452,1758088238107,-1376.48,0.00023013,3]
[385880453,1758088238117,-652.76,0.00023013,3]
[385880454,1758088238126,-765.61,0.00023013,3]
[385880455,1758088238135,-1140.2,0.00023013,3]
[385880456,1758088238145,-569.3,0.00023013,3]
[385880457,1758088238154,-480.0,0.00023013,3]
[385880458,1758088238164,-480.0,0.00023013,3]
[385880459,1758088238174,-11519.66,0.00023013,3]
[385880460,1758088238183,-646.69,0.00023013,3]
[385880461,1758088238192,-480.0,0.00023013,2]
[385880462,1758088238202,-537.96,0.00023013,3]
[385880463,1758088238211,-1576.44,0.00023013,3]
[385880464,1758088238220,-483.58,0.00023013,3]
[385880465,1758088238229,-480.0,0.00023013,3]
[385880466,1758088238238,-160.0,0.0002303,2]
[385880467,1758088238248,-545.87463592,0.0002305,2]
[385880468,1758088238257,-547.33170282,0.000231,2]
[385880469,1758088238266,-1320.08,0.000231,7]
[385880470,1758088238275,-36206.16,0.000231,7]
[385880471,1758088238285,-1482.16,0.000231,7]
[385880472,1758088238294,-151.0,0.00023148,3]
[385880473,1758088238304,-1000.0,0.00023179,2]
[385880474,1758088238313,-1017.13096318,0.00023194,2]
[385880475,1758088238322,-1000.0,0.00023194,2]
[385880476,1758088238332,-506.3625509,0.00023194,2]
[385880477,1758088238341,-565.09993556,0.00023207,2]
[385880478,1758088238351,-1004.03045584,0.0002323,2]
[385880479,1758088238360,-1000.0,0.00023237,2]
[385880480,1758088238369,-1000.0,0.00023237,2]
[385880481,1758088238379,-308.10830202,0.00023243,2]
[385880482,1758088238388,-559.0,0.00023287,2]
[385880483,1758088238398,-480.0,0.00023287,3]
[385880484,1758088238407,-480.0,0.00023287,3]
[385880485,1758088238416,-480.0,0.00023287,3]
[385880486,1758088238426,-584.0,0.00023287,3]
[385880487,1758088238435,-480.0,0.00023287,3]
[385880488,1758088238444,-480.0,0.00023287,3]
[385880489,1758088238453,-1148.77,0.00023287,3]
[385880490,1758088238463,-161.18507,0.00023287,3]
[385880491,1758088238473,-480.0,0.00023287,3]
[385880492,1758088238482,-480.0,0.00023287,3]
[385880493,1758088238492,-480.0,0.00023287,3]
[385880494,1758088238501,-554.43,0.00023287,3]
[385880495,1758088238510,-482.75,0.00023287,3]
[385880496,1758088238519,-480.0,0.00023287,3]
[385880497,1758088238528,-497.31,0.00023287,3]
[385880498,1758088238538,-480.0,0.00023287,3]
[385880499,1758088238547,-1005.56,0.00023287,3]
[385880500,1758088238556,-480.0,0.00023287,3]
[385880501,1758088238566,-480.0,0.00023287,3]
[385880502,1758088238575,-764.21,0.00023287,3]
[385880503,1758088238584,-2797.1,0.00023287,3]
[385880504,1758088238594,-480.0,0.00023287,3]
[385880505,1758088238603,-480.0,0.00023287,3]
[385880506,1758088238612,-652.87,0.00023287,3]
[385880507,1758088238622,-928.61,0.00023287,3]
[385880508,1758088238631,-2098.66,0.00023287,3]
[385880509,1758088238641,-274.61080176,0.00023287,3]
[385880510,1758088238650,-480.0,0.00023287,3]
[385880511,1758088238660,-743.46,0.00023287,3]
[385880512,1758088238669,-520.15,0.00023287,3]
[385880513,1758088238679,-5852.3,0.00023287,2]
[385880514,1758088238688,-529.8,0.00023287,3]
[385880515,1758088238697,-1121.96,0.00023287,3]
[385880516,1758088238706,-890.8,0.00023287,3]
[385880517,1758088238716,-1989.71,0.00023287,3]
[385880518,1758088238725,-480.0,0.00023287,3]
[385880519,1758088238734,-480.0,0.00023287,3]
[385880520,1758088238743,-480.0,0.00023287,3]
[385880521,1758088238752,-1222.0,0.00023287,3]
[385880522,1758088238763,-512.09,0.00023287,3]
[385880523,1758088238772,-480.0,0.00023287,3]
[385880524,1758088238782,-480.0,0.00023287,3]
[385880525,1758088238791,-1170.88,0.00023287,3]
[385880526,1758088238800,-606.96,0.00023287,3]
[385880527,1758088238809,-6251.21,0.00023287,3]
[385880528,1758088238819,-480.0,0.00023287,3]
[385880529,1758088238833,-1283.59,0.00023287,3]
[385880530,1758088238842,-1670.65,0.00023287,3]
[385880531,1758088238852,-2091.14,0.00023287,3]
[385880532,1758088238861,-480.0,0.00023287,3]
[385880533,1758088238870,-480.0,0.00023287,3]
[385880534,1758088238879,-531.04,0.00023287,3]
[385880535,1758088238888,-3082.42,0.00023287,3]
[385880536,1758088238897,-502.35,0.00023287,3]
[385880537,1758088238906,-480.0,0.00023287,3]
[385880538,1758088238916,-480.0,0.00023287,3]
[385880539,1758088238926,-1376.48,0.00023287,3]
[385880540,1758088238935,-652.76,0.00023287,3]
[385880541,1758088238944,-765.61,0.00023287,3]
[385880542,1758088238954,-1140.2,0.00023287,3]
[385880543,1758088238964,-569.3,0.00023287,3]
[385880544,1758088238974,-480.0,0.00023287,3]
[385880545,1758088238983,-480.0,0.00023287,3]
[385880546,1758088238993,-646.69,0.00023287,3]
[385880547,1758088239002,-11519.66,0.00023287,3]
[385880548,1758088239011,-480.0,0.00023287,2]
[385880549,1758088239020,-537.96,0.00023287,3]
[385880550,1758088239030,-1576.44,0.00023287,3]
[385880551,1758088239039,-483.58,0.00023287,3]
[385880552,1758088239048,-480.0,0.00023287,3]
[385880553,1758088239059,-245.0,0.00023288,7]
[385880554,1758088239068,-1005.03262808,0.00023288,2]
[385880555,1758088239078,-151.0,0.00023294,3]
[385880556,1758088239089,-1000.0,0.00023341,2]
[385880557,1758088239099,-1018.55296476,0.00023341,2]
[385880558,1758088239108,-7340.40070478,0.0002345,5]
[385880559,1758088239117,-2000.0,0.000235,2]
[385880560,1758088239127,-545.87463592,0.0002353,2]
[385880561,1758088239136,-559.0,0.00023561,2]
[385880562,1758088239146,-394.88150376,0.00023561,3]
[385880563,1758088239155,-480.0,0.00023561,3]
[385880564,1758088239165,-480.0,0.00023561,3]
[385880565,1758088239175,-584.0,0.00023561,3]
[385880566,1758088239183,-480.0,0.00023561,3]
[385880567,1758088239193,-480.0,0.00023561,3]
[385880568,1758088239205,-1148.77,0.00023561,3]
[385880569,1758088239215,-480.0,0.00023561,3]
[385880570,1758088239224,-480.0,0.00023561,3]
[385880571,1758088239233,-480.0,0.00023561,3]
[385880572,1758088239243,-554.43,0.00023561,3]
[385880573,1758088239252,-482.75,0.00023561,3]
[385880574,1758088239262,-504.29,0.00023561,3]
[385880575,1758088239271,-497.31,0.00023561,3]
[385880576,1758088239281,-313.99,0.00023561,3]
[385880577,1758088239291,-1005.56,0.00023561,3]
[385880578,1758088239301,-480.0,0.00023561,3]
[385880579,1758088239311,-243.39,0.00023561,2]
[385880580,1758088239320,-243.39,0.00023561,3]
[385880581,1758088239329,-243.39,0.00023561,3]
[385880582,1758088239339,-243.39,0.00023561,3]
[385880583,1758088239349,-243.39,0.00023561,3]
[385880584,1758088239358,-243.39,0.00023561,3]
[385880585,1758088239367,-243.39,0.00023561,3]
[385880586,1758088239377,-480.0,0.00023561,3]
[385880587,1758088239387,-764.21,0.00023561,3]
[385880588,1758088239396,-2797.1,0.00023561,3]
[385880589,1758088239406,-480.0,0.00023561,3]
[385880590,1758088239416,-480.0,0.00023561,3]
[385880591,1758088239425,-652.87,0.00023561,3]
[385880592,1758088239434,-928.61,0.00023561,3]
[385880593,1758088239444,-2098.66,0.00023561,3]
[385880594,1758088239454,-480.0,0.00023561,3]
[385880595,1758088239463,-743.46,0.00023561,3]
[385880596,1758088239472,-520.15,0.00023561,3]
[385880597,1758088239482,-529.8,0.00023561,3]
[385880598,1758088239491,-1121.96,0.00023561,3]
[385880599,1758088239501,-890.8,0.00023561,3]
[385880600,1758088239510,-1989.71,0.00023561,3]
[385880601,1758088239520,-480.0,0.00023561,3]
[385880602,1758088239534,-480.0,0.00023561,3]
[385880603,1758088239548,-480.0,0.00023561,3]
[385880604,1758088239560,-1222.0,0.00023561,3]
[385880605,1758088239582,-512.09,0.00023561,3]
[385880606,1758088239594,-480.0,0.00023561,3]
[385880607,1758088239603,-480.0,0.00023561,3]
[385880608,1758088239612,-1170.88,0.00023561,3]
[385880609,1758088239622,-606.96,0.00023561,3]
[385880610,1758088239631,-480.0,0.00023561,3]
[385880611,1758088239640,-6251.21,0.00023561,3]
[385880612,1758088239650,-1283.59,0.00023561,3]
[385880613,1758088239659,-1670.65,0.00023561,3]
[385880614,1758088239670,-2091.14,0.00023561,3]
[385880615,1758088239679,-480.0,0.00023561,3]
[385880616,1758088239688,-480.0,0.00023561,3]
[385880617,1758088239697,-531.04,0.00023561,3]
[385880618,1758088239707,-3082.42,0.00023561,3]
[385880619,1758088239716,-502.35,0.00023561,3]
[385880620,1758088239725,-480.0,0.00023561,3]
[385880621,1758088239735,-480.0,0.00023561,3]
[385880622,1758088239744,-1376.48,0.00023561,3]
[385880623,1758088239753,-652.76,0.00023561,3]
[385880624,1758088239763,-765.61,0.00023561,3]
[385880625,1758088239772,-1140.2,0.00023561,3]
[385880626,1758088239783,-569.3,0.00023561,3]
[385880627,1758088239792,-480.0,0.00023561,3]
[385880628,1758088239801,-480.0,0.00023561,3]
[385880629,1758088239810,-646.69,0.00023561,3]
[385880630,1758088239820,-11519.66,0.00023561,3]
[385880631,1758088239834,-480.0,0.00023561,2]
[385880632,1758088239843,-537.96,0.00023561,3]
[385880634,1758088239852,-1576.44,0.00023561,3]
[385880635,1758088239865,-483.58,0.00023561,3]
[385880636,1758088239875,-480.0,0.00023561,3]
[385880637,1758088239884,-260.0,0.00023578,2]
[385880638,1758088239894,-4302.21347352,0.00023598,2]
[385880639,1758088239904,-251.73501459,0.00023658,2]
[385880640,1758088239915,-420.0,0.00023718,2]
[385880641,1758088239925,-1500.0,0.00023727,2]
[385880642,1758088239934,-691.80475817,0.00023742,2]
[385880643,1758088239943,-800.0,0.00023744,7]
[385880644,1758088239954,-800.0,0.00023744,2]
[385880645,1758088239964,-1500.0,0.00023785,2]
[385880646,1758088239973,-1501.55394876,0.00023785,2]
[385880647,1758088239983,-171.0,0.00023797,2]
[385880648,1758088239994,-559.0,0.00023835,2]
[385880649,1758088240003,-480.0,0.00023835,3]
[385880650,1758088240012,-480.0,0.00023835,3]
[385880651,1758088240022,-584.0,0.00023835,3]
[385880652,1758088240031,-480.0,0.00023835,3]
[385880653,1758088240040,-480.0,0.00023835,3]
[385880654,1758088240050,-1148.77,0.00023835,3]
[385880655,1758088240059,-480.0,0.00023835,3]
[385880656,1758088240069,-480.0,0.00023835,3]
[385880657,1758088240078,-480.0,0.00023835,3]
[385880658,1758088240087,-554.43,0.00023835,3]
[385880659,1758088240096,-482.75,0.00023835,3]
[385880660,1758088240106,-497.31,0.00023835,3]
[385880661,1758088240115,-1005.56,0.00023835,3]
[385880662,1758088240124,-480.0,0.00023835,3]
[385880663,1758088240133,-480.0,0.00023835,3]
[385880664,1758088240143,-764.21,0.00023835,3]
[385880665,1758088240153,-243.39,0.00023835,3]
[385880666,1758088240162,-2797.1,0.00023835,3]
[385880667,1758088240172,-480.0,0.00023835,3]
[385880668,1758088240181,-480.0,0.00023835,3]
[385880669,1758088240190,-652.87,0.00023835,3]
[385880670,1758088240200,-928.61,0.00023835,3]
[385880671,1758088240209,-2098.66,0.00023835,3]
[385880672,1758088240218,-480.0,0.00023835,3]
[385880673,1758088240227,-743.46,0.00023835,3]
[385880674,1758088240236,-520.15,0.00023835,3]
[385880675,1758088240245,-529.8,0.00023835,3]
[385880676,1758088240344,-1121.96,0.00023835,3]
[385880677,1758088240355,-890.8,0.00023835,3]
[385880678,1758088240365,-1989.71,0.00023835,3]
[385880679,1758088240375,-480.0,0.00023835,3]
[385880680,1758088240385,-480.0,0.00023835,3]
[385880681,1758088240395,-480.0,0.00023835,3]
[385880682,1758088240404,-1222.0,0.00023835,3]
[385880683,1758088240415,-512.09,0.00023835,3]
[385880684,1758088240425,-480.0,0.00023835,3]
[385880685,1758088240434,-480.0,0.00023835,3]
[385880686,1758088240443,-1170.88,0.00023835,3]
[385880687,1758088240453,-606.96,0.00023835,3]
[385880688,1758088240463,-480.0,0.00023835,3]
[385880689,1758088240472,-6251.21,0.00023835,3]
[385880690,1758088240481,-1283.59,0.00023835,3]
[385880691,1758088240491,-1670.65,0.00023835,3]
[385880692,1758088240500,-2091.14,0.00023835,3]
[385880693,1758088240509,-480.0,0.00023835,3]
[385880694,1758088240518,-480.0,0.00023835,3]
[385880695,1758088240527,-531.04,0.00023835,3]
[385880696,1758088240537,-3082.42,0.00023835,3]
[385880697,1758088240546,-502.35,0.00023835,3]
[385880698,1758088240556,-480.0,0.00023835,3]
[385880699,1758088240565,-236.997941,0.00023835,3]
[385880700,1758088240575,-1376.48,0.00023835,3]
[385880701,1758088240584,-652.76,0.00023835,3]
[385880702,1758088240593,-765.61,0.00023835,3]
[385880703,1758088240602,-1140.2,0.00023835,3]
[385880704,1758088240612,-569.3,0.00023835,3]
[385880705,1758088240621,-480.0,0.00023835,3]
[385880706,1758088240631,-480.0,0.00023835,3]
[385880707,1758088240640,-646.69,0.00023835,3]
[385880708,1758088240649,-11519.66,0.00023835,3]
[385880709,1758088240658,-480.0,0.00023835,2]
[385880710,1758088240667,-537.96,0.00023835,3]
[385880711,1758088240676,-1576.44,0.00023835,3]
[385880712,1758088240685,-483.58,0.00023835,3]
[385880713,1758088240695,-480.0,0.00023835,3]
[385880714,1758088240704,-98112.0,0.0002387,7]
[385880715,1758088240713,-1500.0,0.00023889,2]
[385880716,1758088240723,-160.0,0.00023949,3]
[385880717,1758088240733,-8013.0,0.00024,2]
[385880718,1758088240742,-160.0,0.00024,7]
[385880719,1758088240751,-217.86301978,0.00024,7]
[385880720,1758088240762,-16877.43126668,0.00024,2]
[385880721,1758088240771,-8255.43267921,0.00024,2]
[385880722,1758088240780,-1708.34016105,0.00024,2]
[385880723,1758088240789,-545.87463592,0.00024009,2]
[385880724,1758088240798,-559.0,0.00024109,2]
[385880725,1758088240807,-480.0,0.00024109,3]
[385880726,1758088240817,-480.0,0.00024109,3]
[385880727,1758088240831,-584.0,0.00024109,3]
[385880728,1758088240841,-480.0,0.00024109,3]
[385880729,1758088240855,-480.0,0.00024109,3]
[385880730,1758088240864,-1148.77,0.00024109,3]
[385880731,1758088240874,-480.0,0.00024109,3]
[385880732,1758088240883,-480.0,0.00024109,3]
[385880733,1758088240892,-480.0,0.00024109,3]
[385880734,1758088240901,-554.43,0.00024109,3]
[385880735,1758088240910,-482.75,0.00024109,3]
[385880736,1758088240920,-497.31,0.00024109,3]
[385880737,1758088240929,-1005.56,0.00024109,3]
[385880738,1758088240938,-480.0,0.00024109,3]
[385880739,1758088240947,-480.0,0.00024109,3]
[385880740,1758088240956,-764.21,0.00024109,3]
[385880741,1758088240966,-243.39,0.00024109,3]
[385880742,1758088240975,-2797.1,0.00024109,3]
[385880743,1758088240985,-480.0,0.00024109,3]
[385880744,1758088240994,-480.0,0.00024109,3]
[385880745,1758088241003,-150.0,0.00024109,2]
[385880746,1758088241013,-652.87,0.00024109,3]
[385880747,1758088241021,-928.61,0.00024109,3]
[385880748,1758088241031,-2098.66,0.00024109,3]
[385880749,1758088241040,-480.0,0.00024109,3]
[385880750,1758088241050,-743.46,0.00024109,3]
[385880751,1758088241059,-520.15,0.00024109,3]
[385880752,1758088241068,-529.8,0.00024109,3]
[385880753,1758088241077,-1121.96,0.00024109,3]
[385880754,1758088241086,-890.8,0.00024109,3]
[385880755,1758088241095,-1989.71,0.00024109,3]
[385880756,1758088241104,-480.0,0.00024109,3]
[385880757,1758088241113,-251.28769974,0.00024109,3]
[385880758,1758088241122,-480.0,0.00024109,3]
[385880759,1758088241132,-1222.0,0.00024109,3]
[385880760,1758088241141,-512.09,0.00024109,3]
[385880761,1758088241150,-480.0,0.00024109,3]
[385880762,1758088241159,-480.0,0.00024109,3]
[385880763,1758088241169,-1170.88,0.00024109,3]
[385880764,1758088241178,-606.96,0.00024109,3]
[385880765,1758088241188,-480.0,0.00024109,3]
[385880766,1758088241197,-6251.21,0.00024109,3]
[385880767,1758088241206,-1283.59,0.00024109,3]
[385880768,1758088241216,-1670.65,0.00024109,3]
[385880769,1758088241226,-2091.14,0.00024109,3]
[385880770,1758088241235,-480.0,0.00024109,3]
[385880771,1758088241244,-480.0,0.00024109,3]
[385880772,1758088241253,-531.04,0.00024109,3]
[385880773,1758088241262,-3082.42,0.00024109,3]
[385880774,1758088241271,-502.35,0.00024109,3]
[385880775,1758088241281,-480.0,0.00024109,3]
[385880776,1758088241289,-1376.48,0.00024109,3]
[385880777,1758088241298,-652.76,0.00024109,3]
[385880778,1758088241308,-765.61,0.00024109,3]
[385880779,1758088241317,-1140.2,0.00024109,3]
[385880780,1758088241327,-569.3,0.00024109,3]
[385880781,1758088241336,-480.0,0.00024109,3]
[385880782,1758088241345,-480.0,0.00024109,3]
[385880783,1758088241355,-646.69,0.00024109,3]
[385880784,1758088241364,-11519.66,0.00024109,3]
[385880785,1758088241374,-480.0,0.00024109,2]
[385880786,1758088241383,-537.96,0.00024109,3]
[385880787,1758088241392,-1576.44,0.00024109,3]
[385880788,1758088241402,-483.58,0.00024109,3]
[385880789,1758088241411,-480.0,0.00024109,3]
[385880790,1758088241421,-360.0,0.00024126,2]
[385880791,1758088241430,-15586.37,0.000242,2]
[385880792,1758088241440,-800.0,0.00024201,7]
[385880793,1758088241449,-160.0,0.00024209,4]
[385880794,1758088241458,-2000.0,0.00024275,2]
[385880795,1758088241467,-800.0,0.00024315,2]
[385880796,1758088241477,-203.87797755,0.00024333,2]
[385880797,1758088241487,-559.0,0.00024383,2]
[385880798,1758088241496,-480.0,0.00024383,3]
[385880799,1758088241505,-480.0,0.00024383,3]
[385880800,1758088241514,-584.0,0.00024383,3]
[385880801,1758088241523,-480.0,0.00024383,3]
[385880802,1758088241532,-480.0,0.00024383,3]
[385880803,1758088241541,-1148.77,0.00024383,3]
[385880804,1758088241551,-480.0,0.00024383,3]
[385880805,1758088241559,-480.0,0.00024383,3]
[385880806,1758088241567,-183.99044713,0.00024383,3]
[385880807,1758088241575,-554.43,0.00024383,3]
[385880808,1758088241583,-482.75,0.00024383,3]
[385880809,1758088241591,-497.31,0.00024383,3]
[385880810,1758088241600,-1005.56,0.00024383,3]
[385880811,1758088241609,-480.0,0.00024383,3]
[385880812,1758088241617,-480.0,0.00024383,3]
[385880813,1758088241626,-764.21,0.00024383,3]
[385880814,1758088241635,-243.39,0.00024383,3]
[385880815,1758088241643,-2797.1,0.00024383,3]
[385880816,1758088241651,-480.0,0.00024383,3]
[385880817,1758088241660,-480.0,0.00024383,3]
[385880818,1758088241670,-652.87,0.00024383,3]
[385880819,1758088241679,-928.61,0.00024383,3]
[385880820,1758088241688,-2098.66,0.00024383,3]
[385880821,1758088241697,-480.0,0.00024383,3]
[385880822,1758088241707,-743.46,0.00024383,3]
[385880823,1758088241715,-520.15,0.00024383,3]
[385880824,1758088241724,-529.8,0.00024383,3]
[385880825,1758088241733,-1121.96,0.00024383,3]
[385880826,1758088241743,-890.8,0.00024383,3]
[385880827,1758088241752,-1989.71,0.00024383,3]
[385880828,1758088241761,-628.2046043,0.00024383,3]
[385880829,1758088241771,-480.0,0.00024383,3]
[385880830,1758088241780,-1222.0,0.00024383,3]
[385880831,1758088241789,-512.09,0.00024383,3]
[385880832,1758088241799,-480.0,0.00024383,3]
[385880833,1758088241808,-480.0,0.00024383,3]
[385880834,1758088241817,-1170.88,0.00024383,3]
[385880835,1758088241831,-606.96,0.00024383,3]
[385880836,1758088241840,-480.0,0.00024383,3]
[385880837,1758088241849,-6251.21,0.00024383,3]
[385880838,1758088241858,-1283.59,0.00024383,3]
[385880839,1758088241867,-1670.65,0.00024383,3]
[385880840,1758088241876,-2091.14,0.00024383,3]
[385880841,1758088241886,-480.0,0.00024383,3]
[385880842,1758088241895,-480.0,0.00024383,3]
[385880843,1758088241906,-531.04,0.00024383,3]
[385880844,1758088241915,-3082.42,0.00024383,3]
[385880845,1758088241925,-502.35,0.00024383,3]
[385880846,1758088241934,-480.0,0.00024383,3]
[385880847,1758088241943,-1376.48,0.00024383,3]
[385880848,1758088241952,-652.76,0.00024383,3]
[385880849,1758088241962,-765.61,0.00024383,3]
[385880850,1758088241971,-1140.2,0.00024383,3]
[385880851,1758088241980,-569.3,0.00024383,3]
[385880852,1758088241989,-480.0,0.00024383,3]
[385880853,1758088241998,-480.0,0.00024383,3]
[385880854,1758088242008,-646.69,0.00024383,3]
[385880855,1758088242017,-11519.66,0.00024383,3]
[385880856,1758088242026,-480.0,0.00024383,2]
[385880857,1758088242035,-537.96,0.00024383,3]
[385880858,1758088242044,-1576.44,0.00024383,3]
[385880859,1758088242053,-483.58,0.00024383,3]
[385880860,1758088242062,-480.0,0.00024383,3]
[385880861,1758088242071,-530.19033335,0.00024437,2]
[385880862,1758088242081,-160.0,0.00024468,5]
[385880863,1758088242090,-800.0,0.00024478,2]
[385880864,1758088242099,-2000.0,0.000245,2]
[385880865,1758088242108,-12983.32,0.00024544,2]
[385880866,1758088242117,-720.0,0.0002459,20]
[385880867,1758088242127,-1220.1843513,0.00024592,2]
[385880868,1758088242136,-71923.00092109,0.0002465,2]
[385880869,1758088242145,-506.43748887,0.0002465,2]
[385880870,1758088242154,-559.0,0.00024657,2]
[385880871,1758088242164,-480.0,0.00024657,3]
[385880872,1758088242173,-480.0,0.00024657,3]
[385880873,1758088242182,-584.0,0.00024657,3]
[385880874,1758088242192,-480.0,0.00024657,3]
[385880875,1758088242201,-480.0,0.00024657,3]
[385880876,1758088242211,-1148.77,0.00024657,3]
[385880877,1758088242220,-480.0,0.00024657,3]
[385880878,1758088242229,-480.0,0.00024657,3]
[385880879,1758088242238,-554.43,0.00024657,3]
[385880880,1758088242248,-482.75,0.00024657,3]
[385880881,1758088242257,-497.31,0.00024657,3]
[385880882,1758088242266,-1005.56,0.00024657,3]
[385880883,1758088242275,-480.0,0.00024657,3]
[385880884,1758088242285,-480.0,0.00024657,3]
[385880885,1758088242294,-764.21,0.00024657,3]
[385880886,1758088242304,-243.39,0.00024657,3]
[385880887,1758088242313,-2797.1,0.00024657,3]
[385880888,1758088242322,-480.0,0.00024657,3]
[385880889,1758088242332,-480.0,0.00024657,3]
[385880890,1758088242341,-652.87,0.00024657,3]
[385880891,1758088242431,-928.61,0.00024657,3]
[385880892,1758088242441,-2098.66,0.00024657,3]
[385880893,1758088242451,-480.0,0.00024657,3]